[Event "2nd Namma Bengaluru Open-B 2025"]
[Site "Bengaluru"]
[Date "2025.04.10"]
[Round "2.8"]
[White "Anand Vittal T R"]
[Black "Nihaan Pohane"]
[Result "0-1"]
[Annotator "NA"]
[ECO "D02"]
[WhiteElo "1678"]
[BlackElo "1882"]
[PlyCount "128"]
[EventDate "2025.04.10"]
[EventType "swiss"]
[EventCountry "IND"]
[SourceTitle "playchess.com"]
[Source "ChessBase"]
[SourceQuality "1"]
[TimeControl "3600+30"]

1. d4 {[%emt 0:00:07]} Nf6 {[%emt 0:00:07]} 2. Nf3 {[%emt 0:00:14]} g6 {[%emt 0:00:05]} 3. Bf4 {[%emt 0:00:11]} d5 {[%emt 0:00:08]} 4. Nbd2 {[%emt 0:00:14]} Bg7 {[%emt 0:00:06]} 5. h3 {[%emt 0:00:14]} O-O {[%emt 0:00:08]} 6. e3 {[%emt 0:00:17]} c5 {[%emt 0:00:07]} 7. c3 {[%emt 0:00:14]} Nc6 {[%emt 0:00:10]} 8. Bd3 {[%emt 0:00:42]} Nd7 {[%emt 0:00:10]} 9. Bg5 {[%emt 0:02:57]} Qb6 {[%emt 0:03:14]} 10. Rb1 {[%emt 0:02:25]} e5 {[%emt 0:02:03]} 11. dxc5 {[%emt 0:05:01]} Nxc5 {[%emt 0:04:51]} 12. Bc2 {[%emt 0:01:50]} d4 {[%emt 0:07:11]} 13. e4 {[%emt 0:04:38]} dxc3 {[%emt 0:01:33]} 14. bxc3 {[%emt 0:10:19]} Qa5 {[%emt 0:01:29]} 15. O-O {[%emt 0:01:18]} Qxc3 {[%emt 0:01:44]} 16. Nb3 {[%emt 0:03:17]} Nxb3 {[%emt 0:02:26]} 17. Bxb3 {[%emt 0:00:31]} h6 {[%emt 0:06:46]} 18. Bd2 {[%emt 0:08:01]} Qd3 {[%emt 0:07:28]} 19. Re1 {[%emt 0:03:57]} Qd6 {[%emt 0:10:40]} 20. Qc1 {[%emt 0:01:33]} g5 {[%emt 0:07:03]} 21. Be3 {[%emt 0:02:05]} Qf6 {[%emt 0:01:53]} 22. Bd5 {[%emt 0:01:46]} Re8 {[%emt 0:07:37]} 23. Qc4 {[%emt 0:03:54]} Be6 {[%emt 0:00:16]} 24. Qa4 {[%emt 0:05:33]} Bxd5 {[%emt 0:02:09]} 25. exd5 {[%emt 0:00:15]} Ne7 {[%emt 0:00:10]} 26. Rxb7 {[%emt 0:01:58]} Nxd5 {[%emt 0:00:12]} 27. Rxa7 {[%emt 0:01:53]} Rad8 {[%emt 0:00:32]} 28. Bd4 {[%emt 0:03:55]} Qf5 {[%emt 0:01:21]} 29. Ra5 {[%emt 0:02:54]} Nf4 {[%emt 0:02:12]} 30. Nxe5 {[%emt 0:01:02]} f6 {[%emt 0:00:31]} 31. Qb3+ {[%emt 0:02:01]} Kh7 {[%emt 0:00:48]} 32. g4 {[%emt 0:00:10]} Qc8 {[%emt 0:00:37]} 33. Qb1+ {[%emt 0:00:50]} Kg8 {[%emt 0:00:32]} 34. Qb3+ {[%emt 0:00:28]} Qe6 {[%emt 0:00:01]} 35. Nc6 {[%emt 0:00:39]} Qxb3 {[%emt 0:00:37]} 36. Rxe8+ {[%emt 0:00:01]} Rxe8 {[%emt 0:00:01]} 37. axb3 {[%emt 0:00:02]} Re6 {[%emt 0:00:57]} 38. Ra8+ {[%emt 0:00:45]} Kh7 {[%emt 0:00:02]} 39. Rc8 {[%emt 0:00:20]} Ne2+ {[%emt 0:01:18]} 40. Kh2 {[%emt 0:00:09]} Rxc6 {[%emt 0:00:19]} 41. Rxc6 {[%emt 0:00:18]} Nxd4 {[%emt 0:00:01]} 42. Rb6 {[%emt 0:00:26]} Kg6 {[%emt 0:00:45]} 43. Kg2 {[%emt 0:00:30]} Bf8 {[%emt 0:00:13]} 44. Rb7 {[%emt 0:00:47]} Nc6 {[%emt 0:01:02]} 45. Kf3 {[%emt 0:02:19]} Na5 {[%emt 0:00:51]} 46. Rb5 {[%emt 0:00:00]} Nc6 {[%emt 0:00:05]} 47. Ke4 {[%emt 0:00:00]} Kf7 {[%emt 0:00:09]} 48. Rb6 {[%emt 0:01:30]} Ne5 {[%emt 0:00:38]} 49. Kf5 {[%emt 0:00:00]} Be7 {[%emt 0:00:04]} 50. f4 {[%emt 0:00:00]} Nd7 {[%emt 0:01:35]} 51. Rb7 {[%emt 0:00:00]} Nc5 {[%emt 0:00:02]} 52. Rb5 {[%emt 0:00:01]} Nd3 {[%emt 0:00:56]} 53. fxg5 {[%emt 0:00:12]} hxg5 {[%emt 0:00:04]} 54. Rb7 {[%emt 0:00:24]} Nc5 {[%emt 0:00:24]} 55. Rb8 {[%emt 0:00:22]} Na6 {[%emt 0:01:03]} 56. Rh8 {[%emt 0:01:04]} Kg7 {[%emt 0:00:30]} 57. Rc8 {[%emt 0:00:10]} Kf7 {[%emt 0:00:17]} 58. Ra8 {[%emt 0:00:18]} Nc7 {[%emt 0:00:17]} 59. Ra7 {[%emt 0:00:33]} Nb5 {[%emt 0:00:05]} 60. Rd7 {[%emt 0:01:02]} Nd6+ {[%emt 0:00:01]} 61. Rxd6 {[%emt 0:01:32]} Bxd6 {[%emt 0:00:07]} 62. Ke4 {[%emt 0:00:11]} Ke6 {[%emt 0:00:11]} 63. Kd4 {[%emt 0:00:13]} Ba3 {[%emt 0:00:47]} 64. Ke4 {[%emt 0:00:13]} Bc5 {[%emt 0:00:12]} 0-1

[Event "2nd Namma Bengaluru Open-B 2025"]
[Site "Bengaluru"]
[Date "2025.04.10"]
[Round "2.9"]
[White "Arush A"]
[Black "Rayan Merchant"]
[Result "1-0"]
[Annotator "NA"]
[ECO "C54"]
[WhiteElo "1876"]
[BlackElo "1679"]
[PlyCount "159"]
[EventDate "2025.04.10"]
[EventType "swiss"]
[EventCountry "IND"]
[SourceTitle "playchess.com"]
[Source "ChessBase"]
[SourceQuality "1"]
[TimeControl "3600+30"]

1. e4 {[%emt 0:00:18]} e5 {[%emt 0:00:21]} 2. Nf3 {[%emt 0:00:23]} Nc6 {[%emt 0:00:16]} 3. Bc4 {[%emt 0:00:24]} Bc5 {[%emt 0:00:20]} 4. c3 {[%emt 0:00:48]} Nf6 {[%emt 0:00:21]} 5. d3 {[%emt 0:00:14]} d6 {[%emt 0:00:11]} 6. O-O {[%emt 0:01:32]} a6 {[%emt 0:00:34]} 7. Bb3 {[%emt 0:02:11]} Ba7 {[%emt 0:00:57]} 8. Nbd2 {[%emt 0:04:08]} O-O {[%emt 0:00:29]} 9. Re1 {[%emt 0:02:39]} h6 {[%emt 0:02:22]} 10. Nf1 {[%emt 0:01:49]} Nh5 {[%emt 0:01:36]} 11. Be3 {[%emt 0:07:04]} Qf6 {[%emt 0:01:40]} 12. Bxa7 {[%emt 0:02:43]} Rxa7 {[%emt 0:00:10]} 13. Ne3 {[%emt 0:00:57]} Nf4 {[%emt 0:01:52]} 14. g3 {[%emt 0:04:13]} Nh3+ {[%emt 0:02:27]} 15. Kg2 {[%emt 0:01:06]} Ne7 {[%emt 0:01:21]} 16. Qd2 {[%emt 0:03:13]} c6 {[%emt 0:02:38]} 17. Ng1 {[%emt 0:02:40]} Ng6 {[%emt 0:02:26]} 18. Nxh3 {[%emt 0:02:58]} Bxh3+ {[%emt 0:00:14]} 19. Kxh3 {[%emt 0:00:17]} Qf3 {[%emt 0:00:25]} 20. Ng2 {[%emt 0:00:13]} Qh5+ {[%emt 0:02:15]} 21. Nh4 {[%emt 0:00:15]} Nxh4 {[%emt 0:00:08]} 22. g4 {[%emt 0:01:44]} Qg5 {[%emt 0:00:50]} 23. Qxg5 {[%emt 0:01:58]} hxg5 {[%emt 0:00:06]} 24. Rad1 {[%emt 0:00:35]} Ng6 {[%emt 0:01:15]} 25. d4 {[%emt 0:00:20]} Nf4+ {[%emt 0:00:52]} 26. Kg3 {[%emt 0:00:11]} b5 {[%emt 0:02:37]} 27. dxe5 {[%emt 0:00:53]} dxe5 {[%emt 0:00:06]} 28. Rd6 {[%emt 0:00:13]} Rc7 {[%emt 0:00:57]} 29. Red1 {[%emt 0:01:04]} a5 {[%emt 0:01:32]} 30. a3 {[%emt 0:04:17]} c5 {[%emt 0:03:09]} 31. Bd5 {[%emt 0:05:22]} c4 {[%emt 0:06:28]} 32. Ra6 {[%emt 0:01:28]} b4 {[%emt 0:06:31]} 33. axb4 {[%emt 0:04:28]} axb4 {[%emt 0:00:18]} 34. Kf3 {[%emt 0:00:44]} Nd3 {[%emt 0:05:30]} 35. Rd2 {[%emt 0:01:40]} Rb8 {[%emt 0:05:04]} 36. Ra4 {[%emt 0:01:06]} bxc3 {[%emt 0:02:20]} 37. bxc3 {[%emt 0:00:09]} Nf4 {[%emt 0:04:11]} 38. Rc2 {[%emt 0:08:23]} Rb5 {[%emt 0:05:09]} 39. Rb4 {[%emt 0:01:31]} Ra5 {[%emt 0:00:28]} 40. Rb8+ {[%emt 0:00:00]} Kh7 {[%emt 0:00:00]} 41. Re8 {[%emt 0:00:00]} Nxd5 {[%emt 0:00:00]} 42. exd5 {[%emt 0:00:00]} Rxd5 {[%emt 0:00:00]} 43. Ke4 {[%emt 0:00:00]} Rcc5 {[%emt 0:00:00]} 44. Re7 {[%emt 0:00:00]} f6 {[%emt 0:00:00]} 45. Rb2 {[%emt 0:00:00]} Rb5 {[%emt 0:00:00]} 46. Rxb5 {[%emt 0:00:00]} Rxb5 {[%emt 0:00:00]} 47. Rc7 {[%emt 0:00:00]} Rb1 {[%emt 0:00:00]} 48. Rxc4 {[%emt 0:00:00]} Rh1 {[%emt 0:00:00]} 49. Rc7 {[%emt 0:00:00]} Rxh2 {[%emt 0:00:00]} 50. f3 {[%emt 0:00:00]} Re2+ {[%emt 0:00:00]} 51. Kd3 {[%emt 0:00:00]} Rf2 {[%emt 0:00:00]} 52. Ke3 {[%emt 0:00:00]} Rc2 {[%emt 0:00:00]} 53. c4 {[%emt 0:00:00]} Kg8 {[%emt 0:00:00]} 54. Ke4 {[%emt 0:00:00]} Kf8 {[%emt 0:00:00]} 55. c5 {[%emt 0:00:00]} Rd2 {[%emt 0:00:00]} 56. Kf5 {[%emt 0:00:00]} Ke8 {[%emt 0:00:00]} 57. Rxg7 {[%emt 0:00:00]} Rd3 {[%emt 0:00:00]} 58. Kxf6 {[%emt 0:00:00]} Rxf3+ {[%emt 0:00:00]} 59. Kxe5 {[%emt 0:00:00]} Rc3 {[%emt 0:00:44]} 60. Kd6 {[%emt 0:00:00]} Rd3+ {[%emt 0:00:30]} 61. Kc6 {[%emt 0:00:00]} Kf8 {[%emt 0:00:42]} 62. Rxg5 {[%emt 0:00:00]} Kf7 {[%emt 0:00:19]} 63. Rd5 {[%emt 0:00:00]} Rg3 {[%emt 0:00:22]} 64. Kd7 {[%emt 0:00:00]} Rxg4 {[%emt 0:00:32]} 65. c6 {[%emt 0:00:00]} Rg7 {[%emt 0:00:56]} 66. c7 Kf6+ {[%emt 0:01:50]} 67. Kc6 {[%emt 0:00:00]} Rg8 {[%emt 0:00:34]} 68. Rd8 {[%emt 0:00:00]} Rg1 {[%emt 0:00:12]} 69. c8=Q {[%emt 0:18:49]} Rc1+ {[%emt 0:00:12]} 70. Kd5 {[%emt 0:00:00]} Rxc8 {[%emt 0:00:07]} 71. Rxc8 {[%emt 0:00:00]} Ke7 {[%emt 0:00:19]} 72. Rc6 {[%emt 0:00:00]} Kd7 {[%emt 0:00:04]} 73. Re6 {[%emt 0:00:00]} Kc7 {[%emt 0:00:38]} 74. Rd6 {[%emt 0:00:00]} Kb7 {[%emt 0:00:16]} 75. Rc6 {[%emt 0:00:00]} Ka8 {[%emt 0:00:06]} 76. Rb6 {[%emt 0:00:00]} Ka7 {[%emt 0:00:13]} 77. Kc6 {[%emt 0:00:00]} Ka8 {[%emt 0:00:20]} 78. Kc7 {[%emt 0:00:00]} Ka7 {[%emt 0:00:07]} 79. Rh6 {[%emt 0:00:00]} Ka8 {[%emt 0:00:02]} 80. Ra6# {[%emt 0:00:00]} 1-0

[Event "2nd Namma Bengaluru Open-B 2025"]
[Site "Bengaluru"]
[Date "2025.04.10"]
[Round "2.10"]
[White "Sasi Hasini Chintala"]
[Black "Samanth Nataraj Naidu"]
[Result "1-0"]
[Annotator "NA"]
[ECO "B40"]
[WhiteElo "1678"]
[BlackElo "1867"]
[PlyCount "169"]
[EventDate "2025.04.10"]
[EventType "swiss"]
[EventCountry "IND"]
[SourceTitle "playchess.com"]
[Source "ChessBase"]
[SourceQuality "1"]
[TimeControl "3600+30"]

1. e4 {[%emt 0:00:13]} c5 {[%emt 0:00:20]} 2. Nf3 {[%emt 0:00:31]} e6 {[%emt 0:01:15]} 3. b3 {[%emt 0:01:17]} a6 {[%emt 0:01:43]} 4. Bb2 {[%emt 0:01:16]} b5 {[%emt 0:01:01]} 5. d4 {[%emt 0:01:37]} cxd4 {[%emt 0:01:15]} 6. Nxd4 {[%emt 0:00:57]} Bb7 {[%emt 0:00:48]} 7. Bd3 {[%emt 0:01:10]} Qc7 {[%emt 0:14:01]} 8. O-O {[%emt 0:03:28]} Nf6 {[%emt 0:02:27]} 9. Nd2 {[%emt 0:01:14]} Nc6 {[%emt 0:03:53]} 10. N4f3 {[%emt 0:01:36]} Bd6 {[%emt 0:01:45]} 11. Re1 {[%emt 0:00:23]} Ne5 {[%emt 0:00:43]} 12. Nxe5 {[%emt 0:02:43]} Bxe5 {[%emt 0:00:09]} 13. Bxe5 {[%emt 0:00:10]} Qxe5 {[%emt 0:00:13]} 14. c4 {[%emt 0:00:13]} O-O {[%emt 0:09:20]} 15. Nf3 {[%emt 0:00:45]} Qc5 {[%emt 0:00:16]} 16. Rc1 {[%emt 0:02:23]} b4 {[%emt 0:03:34]} 17. e5 {[%emt 0:00:59]} Ng4 {[%emt 0:00:21]} 18. Bxh7+ {[%emt 0:01:14]} Kh8 {[%emt 0:09:27]} 19. Nd4 {[%emt 0:03:31]} Nxe5 {[%emt 0:03:43]} 20. Be4 {[%emt 0:06:55]} Bxe4 {[%emt 0:02:21]} 21. Rxe4 {[%emt 0:05:00]} Ng6 {[%emt 0:00:29]} 22. h4 {[%emt 0:01:11]} Rfd8 {[%emt 0:04:06]} 23. Nf3 {[%emt 0:02:38]} Kg8 {[%emt 0:02:28]} 24. Rd4 {[%emt 0:01:50]} Qe7 {[%emt 0:03:46]} 25. h5 {[%emt 0:00:51]} Nf8 {[%emt 0:00:23]} 26. Rc2 {[%emt 0:04:29]} Rac8 {[%emt 0:01:21]} 27. Rd6 {[%emt 0:01:02]} a5 {[%emt 0:00:37]} 28. Qd4 {[%emt 0:01:02]} Rc6 {[%emt 0:00:48]} 29. Rd2 {[%emt 0:00:30]} Rxd6 {[%emt 0:00:54]} 30. Qxd6 {[%emt 0:00:06]} Qxd6 {[%emt 0:00:07]} 31. Rxd6 {[%emt 0:00:04]} Ra8 {[%emt 0:00:10]} 32. Ne5 {[%emt 0:00:59]} Ra7 {[%emt 0:00:07]} 33. Nd3 {[%emt 0:00:43]} f6 {[%emt 0:00:18]} 34. f4 {[%emt 0:00:28]} Kf7 {[%emt 0:00:09]} 35. Kf2 {[%emt 0:00:56]} Ke7 {[%emt 0:00:13]} 36. c5 {[%emt 0:00:09]} Kd8 {[%emt 0:02:50]} 37. g4 {[%emt 0:00:59]} Kc7 {[%emt 0:00:58]} 38. g5 {[%emt 0:01:33]} fxg5 {[%emt 0:00:32]} 39. fxg5 {[%emt 0:00:06]} Nh7 {[%emt 0:00:12]} 40. Ne5 {[%emt 0:01:57]} Kc8 {[%emt 0:00:33]} 41. h6 {[%emt 0:00:39]} Nxg5 {[%emt 0:00:42]} 42. hxg7 {[%emt 0:00:44]} Ne4+ {[%emt 0:00:09]} 43. Kf3 {[%emt 0:00:14]} Nf6 {[%emt 0:00:07]} 44. Ng4 {[%emt 0:00:23]} Ng8 {[%emt 0:00:09]} 45. Kf4 {[%emt 0:00:18]} Rc7 {[%emt 0:01:31]} 46. Ra6 {[%emt 0:00:42]} Kb7 {[%emt 0:00:41]} 47. Rxa5 {[%emt 0:00:14]} Rc8 {[%emt 0:00:32]} 48. Rb5+ {[%emt 0:00:30]} Kc6 {[%emt 0:00:01]} 49. Rxb4 {[%emt 0:00:20]} Ra8 {[%emt 0:00:26]} 50. a4 {[%emt 0:00:44]} Kxc5 {[%emt 0:00:10]} 51. Rc4+ {[%emt 0:00:22]} Kd6 {[%emt 0:00:14]} 52. Ne5 {[%emt 0:03:03]} Ke7 {[%emt 0:01:14]} 53. Rc7 {[%emt 0:01:15]} Nf6 {[%emt 0:00:08]} 54. Rb7 {[%emt 0:00:32]} Rg8 {[%emt 0:01:08]} 55. a5 {[%emt 0:00:48]} Rxg7 {[%emt 0:00:08]} 56. a6 {[%emt 0:00:10]} Rg1 {[%emt 0:00:18]} 57. b4 {[%emt 0:02:53]} Rf1+ {[%emt 0:01:05]} 58. Ke3 {[%emt 0:01:47]} Kd6 {[%emt 0:00:15]} 59. Nc4+ {[%emt 0:00:41]} Ke7 {[%emt 0:00:44]} 60. a7 {[%emt 0:00:16]} Nd5+ {[%emt 0:00:30]} 61. Ke2 {[%emt 0:00:36]} Ra1 {[%emt 0:00:37]} 62. Na5 Ra2+ {[%emt 0:00:24]} 63. Ke1 {[%emt 0:00:45]} Ra1+ {[%emt 0:00:27]} 64. Kd2 {[%emt 0:00:14]} Ra2+ {[%emt 0:00:23]} 65. Kc1 {[%emt 0:00:07]} Nc3 {[%emt 0:00:45]} 66. a8=Q {[%emt 0:00:51]} Ne2+ {[%emt 0:00:16]} 67. Kd1 {[%emt 0:00:06]} Nc3+ {[%emt 0:00:07]} 68. Ke1 {[%emt 0:00:11]} Ra1+ {[%emt 0:00:09]} 69. Kd2 {[%emt 0:00:22]} Ne4+ {[%emt 0:00:12]} 70. Kd3 {[%emt 0:00:12]} Nf2+ {[%emt 0:00:09]} 71. Ke2 {[%emt 0:00:34]} Ra2+ {[%emt 0:00:08]} 72. Kf3 {[%emt 0:00:05]} Ra3+ {[%emt 0:00:07]} 73. Kxf2 {[%emt 0:00:06]} Ra2+ {[%emt 0:00:06]} 74. Ke3 {[%emt 0:00:05]} Ra3+ {[%emt 0:00:07]} 75. Kd4 {[%emt 0:00:05]} e5+ {[%emt 0:00:14]} 76. Kxe5 {[%emt 0:00:10]} Re3+ {[%emt 0:00:08]} 77. Kd4 {[%emt 0:00:05]} Re5 {[%emt 0:00:59]} 78. Nc6+ {[%emt 0:00:15]} Kd6 {[%emt 0:00:13]} 79. Nxe5 {[%emt 0:00:13]} Ke6 {[%emt 0:00:10]} 80. Qe8+ {[%emt 0:00:12]} Kf6 {[%emt 0:00:16]} 81. Nxd7+ {[%emt 0:00:11]} Kg7 {[%emt 0:00:08]} 82. Qf8+ {[%emt 0:00:24]} Kg6 {[%emt 0:00:11]} 83. Ne5+ {[%emt 0:00:04]} Kh5 {[%emt 0:00:12]} 84. Qg8 {[%emt 0:00:10]} Kh4 {[%emt 0:00:08]} 85. Rh7# {[%emt 0:00:14]} 1-0